bitfinex-derivatives/quotes_SOLF0:USTF0_20250309
["timestamp","ask_amount","ask_price","bid_price","bid_amount"]
[1741545872235,41.32,126.87,126.77,52.18889733]
[1741545872440,52.18889733,126.86,126.76,47.9615]
[1741545872638,52.18889733,126.84,126.73,93.50889733]
[1741545872845,52.18889733,126.82,126.73,41.32]
[1741545873037,49.2052,126.83,126.79,7.8873]
[1741545873245,41.32,126.83,126.75,52.18889733]
[1741545873445,41.32,126.83,126.73,93.50889733]
[1741545873646,7.8875,126.8,126.75,7.8896]
[1741545873841,41.32,126.83,126.73,93.50889733]
[1741545874147,0.05069581,126.79,126.76,0.0548643]
[1741545874644,41.32,126.83,126.77,52.18889733]
[1741545874945,6.7044,126.88,126.77,96.74949733]
[1741545875146,41.3,126.87,126.79,52.18889733]
[1741545875349,41.3,126.87,126.77,96.74949733]
[1741545875548,41.3,126.87,126.73,244.18889733]
[1741545875549,52.18889733,126.84,126.73,52.18889733]
[1741545875840,52.18889733,126.84,126.76,7.8891]
[1741545875841,7.887,126.8,126.76,7.8891]
[1741545876442,7.8858,126.82,126.78,7.8881]
[1741545876641,41.3,126.83,126.73,52.18889733]
[1741545876837,41.3,126.83,126.75,52.18889733]
[1741545877046,0.05658161,126.79,126.78,7.8881]
[1741545877446,7.8861,126.82,126.78,7.8881]
[1741545877744,0.05532786,126.8,126.78,7.8877]
[1741545878049,0.05532786,126.8,126.77,0.05222026]
[1741545878250,0.05532786,126.8,126.79,7.8876]
[1741545879153,41.28,126.86,126.78,3.3184]
[1741545879350,41.28,126.86,126.79,52.18889733]
[1741545879648,6.7044,126.88,126.79,93.46889733]
[1741545879844,7.8835,126.86,126.82,7.8855]
[1741545880049,47.9844,126.88,126.79,97.07109733]
[1741545880249,7.8834,126.86,126.83,7.8848]
[1741545880448,47.9844,126.88,126.82,0.05752172]
[1741545880650,52.18889733,126.87,126.82,0.05752172]
[1741545880851,7.8831,126.87,126.82,0.05752172]
[1741545881552,47.9844,126.88,126.82,0.05752172]
[1741545882051,7.8845,126.85,126.82,0.05752172]
[1741545882242,47.9844,126.88,126.82,0.05752172]
[1741545882446,55.8667,126.88,126.82,0.05752172]
[1741545882649,41.28,126.88,126.82,0.05752172]
[1741545883048,7.8829,126.87,126.83,7.8851]
[1741545883250,41.28,126.88,126.82,0.05752172]
[1741545883552,41.28,126.88,126.77,7.8885]
[1741545883553,7.8865,126.81,126.77,7.8885]
[1741545883852,41.28,126.83,126.73,93.46889733]
[1741545884452,41.28,126.83,126.75,6.8603]
[1741545884644,41.28,126.83,126.78,0.05657929]
[1741545884852,0.05381589,126.8,126.78,0.05657929]
[1741545885357,7.8836,126.86,126.79,52.18889733]
[1741545885549,41.28,126.88,126.79,52.18889733]
[1741545886157,1.37229386,126.94,126.82,52.18889733]
[1741545886351,7.8798,126.92,126.83,3.3994]
[1741545886649,41.28,126.93,126.87,0.05738817]
[1741545886860,7.8811,126.9,126.87,0.05738817]
[1741545887057,93.46889733,126.93,126.87,0.05738817]
[1741545888155,52.18889733,126.91,126.87,0.05738817]
[1741545888349,41.28,126.93,126.87,0.05738817]
[1741545888547,7.8812,126.9,126.87,0.05738817]
[1741545888751,41.28,126.93,126.87,0.05738817]
[1741545888948,41.26,126.92,126.87,0.05738817]
[1741545889154,7.8804,126.91,126.87,7.93968817]
[1741545889355,41.26,126.92,126.87,7.93968817]
[1741545889558,7.8812,126.9,126.87,0.05738817]
[1741545890159,7.8803,126.91,126.87,7.93958817]
[1741545890361,41.26,126.92,126.87,0.05738817]
[1741545890565,41.26,127.01,126.89,52.18889733]
[1741545890751,41.26,127.01,126.87,0.05738817]
[1741545890752,52.18889733,126.99,126.87,52.18889733]
[1741545890951,52.18889733,126.96,126.94,0.0543443]
[1741545891157,7.8784,126.94,126.88,7.8817]
[1741545891356,3.2994,126.93,126.85,3.593]
[1741545891556,55.48829733,126.93,126.83,3.3102]
[1741545891960,3.2994,126.93,126.84,52.18889733]
[1741545892157,0.05253926,126.89,126.88,7.8816]
[1741545892463,3.2994,126.93,126.88,7.8816]
[1741545892663,0.05174764,126.9,126.88,7.8816]
[1741545892858,41.31174764,126.9,126.87,0.05556444]
[1741545893351,49.19254764,126.9,126.87,0.05556444]
[1741545893552,41.31174764,126.9,126.87,0.05556444]
[1741545893756,41.31174764,126.9,126.81,3.3845]
[1741545893956,7.8833,126.86,126.78,52.18889733]
[1741545894157,41.26,126.85,126.78,52.18889733]
[1741545895065,0.04998094,126.83,126.81,7.886]
[1741545895360,0.04998094,126.83,126.8,0.04974471]
[1741545896862,0.04998094,126.83,126.81,7.8864]
[1741545897063,0.04998094,126.83,126.8,0.04974471]
[1741545897461,0.04998094,126.83,126.82,7.8858]
[1741545899965,8.094e-05,126.83,126.82,7.8858]
[1741545900165,3.5423,126.89,126.82,52.18889733]
[1741545900361,312.36889733,126.96,126.82,52.18889733]
[1741545900562,44.7823,126.94,126.83,3.4816]
[1741545900768,44.7823,126.94,126.82,52.18889733]
[1741545900964,44.7823,126.94,126.81,3.3482]
[1741545901163,0.05590662,126.89,126.87,0.05820084]
[1741545901568,0.05559025,126.89,126.87,0.05820084]
[1741545901767,0.05559025,126.89,126.84,7.8844]
[1741545901968,41.24,126.9,126.8,93.42889733]
[1741545902570,7.8821,126.88,126.8,93.42889733]
[1741545902771,41.24,126.9,126.8,41.24]
[1741545902967,41.24,126.9,126.83,0.05463448]
[1741545903367,41.24,126.93,126.85,52.18889733]
[1741545903874,41.24,126.93,126.91,7.8802]
[1741545904171,7.8805,126.91,126.85,52.18889733]
[1741545904374,41.29245912,126.93,126.91,0.05613537]
[1741545904674,41.24,126.93,126.85,52.18889733]
[1741545904875,7.8805,126.91,126.87,7.8823]
[1741545905079,41.24,126.93,126.88,0.05760473]
[1741545905374,0.05618743,126.9,126.89,7.8814]
[1741545906176,8.743e-05,126.9,126.89,11.8214]
[1741545906375,8.743e-05,126.9,126.89,15.1739]
[1741545906577,3.4051,126.99,126.89,7.2925]
[1741545906776,181.75922956,127.02,126.93,52.18889733]
[1741545906777,118.42324677,127.02,126.93,52.18889733]
[1741545907181,118.42324677,127.02,126.96,52.18889733]
[1741545907684,118.42324677,127.02,126.99,7.8751]
[1741545907870,118.42324677,127.02,126.98,0.0541678]
[1741545908178,118.42324677,127.02,127.01,7.874]
[1741545908377,118.42324677,127.02,126.99,52.18889733]
[1741545908682,118.42324677,127.02,126.98,0.0541678]
[1741545908881,3.4562,127.01,126.92,52.18889733]
[1741545909181,52.18889733,127.0,126.88,52.18889733]
[1741545909375,41.22,126.99,126.88,52.18889733]
[1741545910070,0.05368383,126.95,126.92,0.05458242]
[1741545910281,3.4562,127.01,126.99,7.8751]
[1741545910476,118.42324677,127.02,126.97,52.18889733]
[1741545910781,195.5714,127.06,127.0,52.18889733]
[1741545910782,192.0,127.06,127.0,52.18889733]
[1741545910974,41.22,127.07,127.0,52.18889733]
[1741545911371,41.22,127.07,126.98,3.4632]
[1741545911580,93.40889733,127.07,127.02,0.05497228]
[1741545911783,41.22,127.07,126.96,52.18889733]
[1741545912175,52.18889733,127.09,126.97,41.2]
[1741545912376,199.0276,127.1,127.0,52.18889733]
[1741545912579,56.0964,127.1,127.05,7.871]
[1741545912776,56.0964,127.1,127.0,52.18889733]
[1741545912777,48.2276,127.1,127.01,41.2]
[1741545912981,0.05334807,127.09,127.06,0.05518183]
[1741545915089,41.2,127.14,127.06,0.05518183]
[1741545915381,7.8659,127.15,127.09,7.869]
[1741545915579,6.6264,127.16,127.06,52.18889733]
[1741545915982,6.6264,127.16,127.1,0.05114868]
[1741545916186,52.18889733,127.15,127.1,0.05114868]
[1741545916377,198.6264,127.16,127.04,52.18889733]
[1741545916577,52.2448512,127.14,127.04,60.06049733]
[1741545916783,41.18,127.13,127.01,96.82339733]
[1741545917093,7.8713,127.06,127.01,7.8739]
[1741545917584,52.18889733,127.11,126.99,312.14889733]
[1741545917585,41.18,127.11,127.02,52.24416516]
[1741545917786,41.18,127.11,127.02,0.05526783]
[1741545918082,41.18,127.11,126.99,312.14889733]
[1741545918285,41.18,127.11,127.05,52.18889733]
[1741545918581,41.18,127.11,127.02,52.18889733]
[1741545918785,93.36889733,127.11,126.99,312.14889733]
[1741545918976,93.36889733,127.11,127.07,0.05238676]
[1741545919178,93.36889733,127.11,126.97,47.7463]
[1741545919379,93.36889733,127.11,126.97,6.5663]
[1741545919585,52.18889733,127.08,126.95,41.18]
[1741545919788,47.7178,127.07,126.95,41.18]
[1741545920288,47.7178,127.07,126.98,7.8758]
[1741545920485,0.05318658,127.03,127.0,0.05485732]
[1741545920688,41.18,127.02,126.93,70.08400165]
[1741545920988,41.18,127.02,126.96,7.8766]
[1741545921190,41.18,127.02,126.93,70.08400165]
[1741545921887,0.05110183,126.99,126.96,0.05174792]
[1741545922288,7.8763,126.98,126.96,0.05174792]
[1741545922490,0.05110183,126.99,126.96,0.05174792]
[1741545922687,41.18,126.98,126.96,0.05174792]
[1741545922887,0.05110183,126.99,126.96,0.05174792]
[1741545926682,0.05110183,126.99,126.92,7.8794]
[1741545926886,3.48060183,126.99,126.92,7.8794]
[1741545927192,7.8759,126.98,126.94,7.8782]
[1741545927391,41.18,126.97,126.89,3.5834]
[1741545927591,41.18,126.97,126.9,52.18889733]
[1741545927791,41.18,126.97,126.86,263.1354]
[1741545928092,0.05058873,126.95,126.92,0.05692368]
[1741545928987,0.05058873,126.95,126.93,7.8785]
[1741545929192,0.05058873,126.95,126.92,0.05692368]
[1741545929491,0.05058873,126.95,126.94,7.8783]
[1741545930287,3.157,127.02,126.98,7.8756]
[1741545930692,3.157,127.02,126.93,96.84179733]
[1741545930891,3.157,127.02,126.93,44.6529]
[1741545931595,0.05842144,126.99,126.96,0.05353978]
[1741545931795,41.18,126.98,126.96,0.05353978]
[1741545931991,7.8765,126.97,126.96,0.05353978]
[1741545932194,41.18,126.98,126.96,0.05353978]
[1741545932697,7.8765,126.97,126.96,0.05353978]
[1741545932897,41.18,126.98,126.96,0.05353978]
[1741545936403,7.8765,126.97,126.96,0.05353978]
[1741545936798,41.18,126.98,126.87,58.79419733]
[1741545936999,44.4388,126.98,126.87,58.79419733]
[1741545937903,0.05325053,126.94,126.91,0.05303887]
[1741545938704,7.879,126.93,126.91,0.05303887]
[1741545938900,0.05325053,126.94,126.91,0.05303887]
[1741545939098,41.23325053,126.94,126.91,0.05303887]
[1741545940702,0.05325053,126.94,126.91,0.05303887]
[1741545942600,0.05325053,126.94,126.93,7.8789]
[1741545942800,41.18,126.99,126.92,52.18889733]
[1741545943002,44.3826,127.01,126.92,52.18889733]
[1741545943506,44.3826,127.01,126.9,55.45259733]
[1741545944106,0.05417782,126.97,126.96,7.8771]
[1741545944505,44.3826,127.01,126.93,32.15411362]
[1741545944506,3.2026,127.01,126.93,32.15411362]
[1741545944708,41.16,127.0,126.98,7.8752]
[1741545944905,41.16,127.0,126.95,0.05024833]
[1741545945101,7.8759,126.98,126.94,7.878]
[1741545945307,44.34649595,127.0,126.96,0.0584607]
[1741545945603,0.05653291,126.99,126.96,0.0584607]
[1741545945901,7.8765,126.97,126.96,0.0584607]
[1741545946307,7.93203291,126.99,126.96,0.0584607]
[1741545946903,7.93203291,126.99,126.96,7.9354607]
[1741545947207,0.05653291,126.99,126.96,0.0584607]
[1741545947405,0.05653291,126.99,126.97,7.8761]
[1741545947605,0.05653291,126.99,126.96,0.0584607]
[1741545949110,0.05653291,126.99,126.98,7.8758]
[1741545949612,0.05653291,126.99,126.96,0.0584607]
[1741545950104,41.21653291,126.99,126.96,0.0584607]
[1741545951411,49.09193291,126.99,126.96,0.0584607]
[1741545951711,41.21653291,126.99,126.96,0.0584607]
[1741545953304,49.09203291,126.99,126.96,0.0584607]
[1741545953506,41.21653291,126.99,126.96,0.0584607]
[1741545953907,7.8765,126.97,126.96,0.0584607]
[1741545954113,3.2998,126.98,126.89,32.15411362]
[1741545954313,6.7604,126.98,126.89,32.15411362]
[1741545954512,7.8781,126.95,126.91,7.8796]
[1741545954712,49.0381,126.95,126.91,7.8796]
[1741545955212,0.05580714,126.94,126.92,0.05086511]
[1741545955412,7.93420714,126.94,126.92,0.05086511]
[1741545955609,0.05580714,126.94,126.92,0.05086511]
[1741545956213,0.05580714,126.94,126.87,68.71945311]
[1741545956410,0.05580714,126.94,126.87,65.57415311]
[1741545956713,32.15411362,126.93,126.87,65.57415311]
[1741545956903,41.16,126.95,126.87,65.57415311]
[1741545957111,7.8792,126.93,126.89,7.8809]
[1741545957315,41.16,126.95,126.87,65.57415311]
[1741545957506,0.0603169,126.92,126.9,0.0534144]
[1741545958311,0.0603169,126.92,126.9,7.9341144]
[1741545958520,0.0603169,126.92,126.9,0.0534144]
[1741545958909,1.69e-05,126.92,126.91,7.8802]
[1741545959116,41.16,126.98,126.91,35.63211362]
[1741545959508,41.16,126.98,126.91,3.478]
[1741545959919,7.8783,126.94,126.9,7.8804]
[1741545960112,7.2261,126.97,126.87,35.63211362]
[1741545960417,0.05763922,126.95,126.92,0.06025256]
[1741545961016,41.14,126.94,126.92,0.06025256]
[1741545961315,0.05763922,126.95,126.92,0.06025256]
[1741545961517,3.922e-05,126.95,126.92,32.21436618]
[1741545961716,3.922e-05,126.95,126.94,7.8783]
[1741545963017,3.922e-05,126.95,126.92,0.06025256]
[1741545963419,3.922e-05,126.95,126.93,32.15411362]
[1741545963714,3.5045,127.02,126.94,3.6007]
[1741545963920,3.6073,127.03,126.95,32.15411362]
[1741545964219,3.6073,127.03,126.95,35.64261362]
[1741545964419,3.4422,127.05,126.98,32.15411362]
[1741545964620,41.14,127.09,126.99,41.14]
[1741545964823,32.27960681,127.1,127.01,32.15411362]
[1741545965114,2.524e-05,127.05,127.04,7.8721]
[1741545965520,73.41960681,127.1,127.02,10.5067]
[1741545965710,73.41960681,127.1,127.03,7.8723]
[1741545965909,73.41960681,127.1,127.02,10.5067]
[1741545966123,0.05050044,127.08,127.05,0.05929466]
[1741545968118,7.8709,127.06,127.05,0.05929466]
[1741545968314,41.12,127.06,126.98,35.64251362]
[1741545968721,41.12,127.1,127.0,32.15411362]
[1741545968921,51.285,127.12,127.0,73.27411362]
[1741545969222,59.1524,127.12,127.03,32.15411362]
[1741545969427,47.874,127.12,127.08,7.8696]
[1741545969617,6.754,127.12,127.08,7.8696]
[1741545969819,0.05614586,127.11,127.04,44.6948]
[1741545970123,0.05614586,127.11,127.06,32.15411362]
[1741545970322,0.05614586,127.11,127.09,7.8689]
[1741545970823,170.86056855,127.18,127.14,7.8659]
[1741545971019,170.86056855,127.18,127.1,35.43061362]
[1741545971322,170.86056855,127.18,127.12,7.8667]
[1741545971517,170.86056855,127.18,127.08,32.15411362]
[1741545971819,0.05364924,127.14,127.12,32.21319905]
[1741545972019,0.0052095,127.14,127.12,32.21319905]
[1741545972215,0.0052095,127.14,127.12,0.05908543]
[1741545972525,93.2298514,127.14,127.05,3.4884]
[1741545972921,7.8682,127.11,127.05,11.3594]
[1741545973119,7.8682,127.11,127.0,6.5534]
[1741545973120,93.2246419,127.11,127.0,52.1246419]
[1741545973319,93.2246419,127.11,126.97,6.5534]
[1741545973320,52.1246419,127.07,126.97,6.5534]
[1741545973516,41.1,127.06,126.94,145.83375825]
[1741545973717,44.3813,127.06,126.94,85.83141635]
[1741545974026,0.05593644,127.03,127.01,0.05159798]
[1741545974524,41.1,127.02,127.01,0.05159798]
[1741545974720,0.05593644,127.03,127.01,0.05159798]
[1741545975425,41.1,127.07,127.01,52.17623988]
[1741545975625,44.6975,127.1,127.01,52.17623988]
[1741545975817,44.6975,127.1,127.01,52.1246419]
[1741545976128,44.3813,127.13,127.04,52.1246419]
[1741545976328,41.1,127.16,127.07,52.1246419]
[1741545976528,41.1,127.16,127.1,52.1246419]
[1741545976721,41.1,127.16,127.1,52.18261363]
[1741545976922,41.1,127.16,127.1,0.05797173]
[1741545977428,41.1,127.16,127.11,7.8677]
[1741545977621,41.1,127.16,127.1,0.05797173]
[1741545978629,7.8665,127.14,127.1,0.05797173]
[1741545978832,41.1,127.16,127.1,0.05797173]
[1741545979137,52.1246419,127.13,127.03,3.5318]
[1741545979325,44.6362,127.12,127.0,315.2946419]
[1741545979828,3.3051,127.11,127.0,315.2946419]
[1741545980329,3.3051,127.11,127.02,52.1246419]
[1741545980521,0.05255859,127.07,127.04,0.05720127]
[1741545980721,0.05255859,127.07,127.04,7.92930127]
[1741545980917,0.05255859,127.07,127.04,0.05720127]
[1741545981227,0.05255859,127.07,127.06,7.8709]
[1741545981423,0.05255859,127.07,127.04,0.05720127]
[1741545982221,7.8709,127.06,127.04,0.05720127]
[1741545982422,0.05255859,127.07,127.04,0.05720127]
[1741545983827,0.05255859,127.07,127.06,7.8709]
[1741545984532,5.859e-05,127.07,127.06,7.8709]
[1741545984719,5.859e-05,127.07,127.06,59.9955419]
[1741545984925,7.8643,127.17,127.06,56.0646419]
[1741545985125,41.08,127.17,127.11,52.1246419]
[1741545985531,6.5985,127.19,127.12,3.4211]
[1741545985731,6.5985,127.19,127.16,7.8647]
[1741545986125,3.5956,127.21,127.18,7.8633]
[1741545986329,3.5956,127.21,127.16,0.05840142]
[1741545986530,32.27960681,127.22,127.16,0.05840142]
[1741545988329,40.14070681,127.22,127.16,7.92300142]
[1741545988531,40.14070681,127.22,127.16,0.05840142]
[1741545988532,32.27960681,127.22,127.16,0.05840142]
[1741545988930,7.8641,127.17,127.16,0.05840142]
[1741545989233,41.08,127.17,127.09,52.1246419]
[1741545989936,41.08,127.17,127.07,41.08]
[1741545989937,7.8659,127.14,127.07,41.08]
[1741545990135,7.0247,127.16,127.07,41.08]
[1741545990331,0.0573977,127.14,127.12,0.05032765]
[1741545990735,41.06,127.13,127.12,0.05032765]
[1741545990936,48.9265,127.13,127.12,0.05032765]
[1741545991132,41.06,127.13,127.04,51.3701]
[1741545991436,41.06,127.13,127.03,7.8725]
[1741545991632,41.06,127.13,127.01,6.8621]
[1741545992334,0.05602395,127.09,127.06,0.04974743]
[1741545992535,41.11602395,127.09,127.06,0.04974743]
[1741545992943,0.05602395,127.09,127.06,0.04974743]
[1741545993139,7.0247,127.16,127.11,7.8677]
[1741545993331,7.0247,127.16,127.08,52.1246419]
[1741545993535,7.0247,127.16,127.07,3.5152]
[1741545993734,7.0247,127.16,127.05,52.1246419]
[1741545994238,0.05148952,127.12,127.09,0.05200473]
[1741545995531,0.05148952,127.12,127.01,6.8621]
[1741545995735,7.8689,127.1,127.05,7.8711]
[1741545995935,285.1846419,127.14,127.01,6.8621]
[1741545995936,41.06,127.09,127.01,6.8621]
[1741545996236,41.06,127.09,127.01,3.3465]
[1741545996436,7.0473,127.08,127.01,3.3465]
[1741545996630,0.05745193,127.06,127.04,0.05064679]
[1741545996836,0.05745193,127.06,127.05,7.8713]
[1741545998238,0.05745193,127.06,127.04,0.05064679]
[1741545999243,7.92845193,127.06,127.04,0.05064679]
[1741545999439,0.05745193,127.06,127.04,0.05064679]
[1741545999842,7.8715,127.05,127.04,0.05064679]
[1741546000033,0.05745193,127.06,127.04,0.05064679]
[1741546000435,7.8715,127.05,127.04,0.05064679]
[1741546000840,52.1246419,127.05,126.94,311.7646419]
[1741546001141,41.06,127.04,126.93,46.56675921]
[1741546001337,7.8759,126.98,126.95,7.8774]
[1741546001539,233.06,127.04,126.95,7.8774]
[1741546001540,41.06,126.99,126.95,7.8774]
[1741546001937,7.8759,126.98,126.95,7.8777]
[1741546002240,0.05367587,126.98,126.96,0.04985468]
[1741546003339,7.587e-05,126.98,126.96,0.04985468]
[1741546004042,7.587e-05,126.98,126.97,7.8765]
[1741546004236,7.0581,127.06,126.97,7.8765]
[1741546004437,41.06,127.1,127.06,7.8704]
[1741546004634,3.6037,127.12,127.03,52.1246419]
[1741546004635,7.0802,127.12,127.03,52.1246419]
[1741546005234,7.0802,127.12,127.01,48.0657]
[1741546005435,0.05053803,127.09,127.06,0.0603726]
[1741546006244,7.91993803,127.09,127.06,0.0603726]
[1741546006446,0.05053803,127.09,127.06,0.0603726]
[1741546007242,0.05053803,127.09,127.07,7.8703]
[1741546007445,0.05053803,127.09,127.06,52.1850145]
[1741546007838,0.05053803,127.09,127.06,0.0603726]
[1741546009047,0.05053803,127.09,127.08,7.8696]
[1741546009745,0.05053803,127.09,127.06,41.1203726]
[1741546010039,0.05053803,127.09,127.06,0.0603726]
[1741546010244,0.05053803,127.09,127.06,7.9307726]
[1741546010446,0.05053803,127.09,127.06,0.0603726]
[1741546011846,7.87,127.08,127.06,0.0603726]
[1741546012349,7.8703,127.07,127.06,0.0603726]
[1741546012848,55.75587993,127.09,126.98,3.6288]
[1741546013049,6.9658,127.08,126.98,3.6288]
[1741546013448,7.8705,127.07,126.98,3.6288]
[1741546013649,6.9658,127.08,126.98,3.6288]
[1741546014051,0.06005341,127.04,127.03,7.8723]
[1741546014251,7.8705,127.07,127.02,0.05298711]
[1741546014447,0.05183508,127.05,127.02,0.05298711]
[1741546016243,7.8725,127.04,127.02,0.05298711]
[1741546016446,0.05183508,127.05,127.02,0.05298711]
[1741546017453,7.8727,127.03,127.02,0.05298711]
[1741546017653,41.06,127.04,126.97,3.6368]
[1741546017854,44.5753,127.04,126.97,3.6368]
[1741546018156,7.8738,127.02,126.99,7.8749]
[1741546018361,44.5753,127.04,126.97,3.6368]
[1741546018756,7.8729,127.03,126.97,3.6368]
[1741546019054,0.05038796,127.02,126.99,0.05851155]
[1741546019247,0.05038796,127.02,127.01,7.874]
[1741546019648,0.05038796,127.02,126.99,0.05851155]
[1741546019854,0.05038796,127.02,127.0,7.8742]
[1741546020153,0.05038796,127.02,126.99,0.05851155]
[1741546021459,0.05038796,127.02,127.01,7.874]
[1741546022552,3.6103,127.08,127.05,7.871]
[1741546022849,3.6103,127.08,126.99,3.7028]
[1741546023054,7.2118,127.08,126.99,3.7028]
[1741546023256,7.2118,127.08,126.96,315.4731419]
[1741546023453,7.2118,127.08,126.99,7.8747]
[1741546023653,0.05601834,127.03,127.01,0.05820479]
[1741546024050,41.04,127.04,127.01,7.93180479]
[1741546024245,0.05005313,127.03,127.01,7.93180479]
[1741546024451,0.05005313,127.03,127.01,0.05820479]
[1741546024856,0.05005313,127.03,126.97,7.876]
[1741546025056,41.04,127.04,126.93,100.5988419]
[1741546025454,41.04,127.04,126.96,52.1246419]
[1741546025854,93.1646419,127.04,126.93,100.5988419]
[1741546026161,0.05859697,127.01,126.99,0.05908627]
[1741546026565,41.04,127.0,126.9,322.63211237]
[1741546027059,52.5552,127.0,126.9,322.63211237]
[1741546027261,44.6802,127.0,126.9,322.63211237]
[1741546027655,0.05274474,126.96,126.94,0.05056037]
[1741546028856,0.05274474,126.96,126.95,7.8777]
[1741546029665,4.474e-05,126.96,126.95,7.8777]
[1741546029960,4.474e-05,126.96,126.94,7.92876037]
[1741546030161,4.474e-05,126.96,126.94,0.05056037]
[1741546032964,7.8777,126.95,126.94,0.05056037]
[1741546033365,7.8799,126.92,126.88,7.8818]
[1741546033968,7.8816,126.89,126.85,3.6893]
[1741546034161,3.3952,126.93,126.85,3.6893]
[1741546034362,3.3952,126.93,126.85,10.74747047]
[1741546034660,0.06015378,126.9,126.88,0.05407064]
[1741546034860,41.10015378,126.9,126.88,0.05407064]
[1741546035362,7.8814,126.89,126.88,0.05407064]
[1741546035561,41.10015378,126.9,126.85,10.74747047]
[1741546035765,48.98115378,126.9,126.85,10.74747047]
[1741546036067,93.22479568,126.9,126.85,10.74747047]
[1741546036964,7.8816,126.89,126.86,0.05272796]
[1741546037168,192.0,126.89,126.84,118.22217517]
[1741546037464,192.0,126.89,126.85,7.8838]
[1741546037770,44.7891,126.92,126.81,52.1246419]
[1741546037966,44.7891,126.92,126.85,7.8839]
[1741546038267,44.7891,126.92,126.82,3.6393]
[1741546038470,0.05579032,126.9,126.89,7.8814]
[1741546038862,0.05579032,126.9,126.85,3.3968]
[1741546039060,0.05579032,126.9,126.88,0.05356397]
[1741546039770,0.05579032,126.9,126.89,7.8814]
[1741546040067,41.06,126.96,126.89,52.1246419]
[1741546040261,3.5089,127.0,126.89,55.5632419]
[1741546040467,41.06,126.99,126.89,55.5632419]
[1741546040964,192.0,126.98,126.89,3.4386]
[1741546041162,192.0,126.98,126.86,44.7122]
[1741546041370,0.05321635,126.95,126.92,0.05853247]
[1741546041775,41.06,126.94,126.92,0.05853247]
[1741546042668,41.06,126.94,126.87,3.4386]
[1741546042669,41.06,126.94,126.87,7.8825]
[1741546043075,41.06,126.94,126.86,3.6522]
[1741546043872,0.05368249,126.91,126.89,0.05769787]
[1741546044272,0.05368249,126.91,126.9,7.8808]
[1741546044473,0.05368249,126.91,126.89,0.05769787]
[1741546044874,0.05368249,126.91,126.9,7.8808]
[1741546045275,0.05368249,126.91,126.89,0.05769787]
[1741546045965,0.05368249,126.91,126.9,7.8808]
[1741546048278,0.05368249,126.91,126.89,7.93899787]
[1741546048467,0.05368249,126.91,126.89,0.05769787]
[1741546048872,0.05368249,126.91,126.9,7.8808]
[1741546049076,0.05368249,126.91,126.89,0.05769787]
[1741546049274,0.05368249,126.91,126.9,7.8808]
[1741546049275,41.09368249,126.91,126.9,7.8808]
[1741546049471,41.09368249,126.91,126.89,0.05769787]
[1741546049880,48.97418249,126.91,126.86,7.883]
[1741546050070,41.09368249,126.91,126.82,6.9772]
[1741546050280,41.04,126.91,126.82,6.9772]
[1741546051081,0.05232269,126.88,126.85,0.05503798]
[1741546051283,41.04,126.87,126.85,0.05503798]
[1741546051483,41.04,126.87,126.85,7.93853798]
[1741546051682,41.04,126.87,126.78,52.1246419]
[1741546052182,41.04,126.87,126.86,7.8833]
[1741546052383,41.04,126.9,126.79,15.7748]
[1741546052581,41.04,126.9,126.87,7.8826]
[1741546052781,41.04,126.9,126.82,52.1246419]
[1741546052981,41.09420977,126.9,126.87,0.05877796]
[1741546053185,41.04,126.9,126.87,0.05877796]
[1741546053383,0.05482582,126.9,126.87,0.05877796]
[1741546053585,0.05482582,126.9,126.89,7.881]
[1741546053885,0.05482582,126.9,126.87,0.05877796]
[1741546055189,3.46672582,126.9,126.79,10.5429]
[1741546055389,3.4119,126.9,126.79,10.5429]
[1741546055692,7.8814,126.89,126.79,10.5429]
[1741546056290,0.06014854,126.85,126.84,7.8845]
[1741546056485,3.4119,126.9,126.79,10.5429]
[1741546056691,0.0550951,126.86,126.83,7.93963498]
[1741546056891,0.0550951,126.86,126.83,0.05493498]
[1741546057891,0.0550951,126.86,126.85,7.8839]
[1741546058192,0.0550951,126.86,126.83,7.93973498]
[1741546058391,0.0550951,126.86,126.83,0.05493498]
[1741546059399,41.0950951,126.86,126.83,0.05493498]
[1741546060091,41.0950951,126.86,126.76,51.5077]
[1741546060284,41.04,126.86,126.76,51.5077]